[Event "*** Titled Tuesday Blitz"]
[Site "Chess.com"]
[Date "2020.11.03"]
[Round "6"]
[White "guillembaches"]
[Black "Ashedu66"]
[Result "1/2-1/2"]
[WhiteElo "2373"]
[BlackElo "2240"]
[TimeControl "180+1"]
[EndTime "11:08:57 PST"]
[Termination "Game drawn by repetition"]

1. e4 {[%clk 0:03:00.9]} 1... e5 {[%clk 0:02:59.9]} 2. Nf3 {[%clk 0:03:01]} 2...
Nc6 {[%clk 0:02:59.7]} 3. Nc3 {[%clk 0:03:01.7]} 3... Nf6 {[%clk 0:02:59.6]} 4.
d4 {[%clk 0:03:02.3]} 4... exd4 {[%clk 0:02:59.8]} 5. Nxd4 {[%clk 0:03:03.2]}
5... Bb4 {[%clk 0:02:59.9]} 6. Nxc6 {[%clk 0:03:03]} 6... bxc6 {[%clk
0:03:00.2]} 7. Bd3 {[%clk 0:03:03.6]} 7... O-O {[%clk 0:02:59.5]} 8. O-O {[%clk
0:03:02.8]} 8... d5 {[%clk 0:02:59.7]} 9. Bd2 {[%clk 0:03:03.4]} 9... Bxc3
{[%clk 0:02:52.2]} 10. Bxc3 {[%clk 0:03:04.3]} 10... dxe4 {[%clk 0:02:43.2]} 11.
Bxf6 {[%clk 0:03:03.3]} 11... Qxf6 {[%clk 0:02:42.6]} 12. Bxe4 {[%clk
0:03:03.5]} 12... Qxb2 {[%clk 0:02:29.6]} 13. Bxc6 {[%clk 0:03:03.3]} 13... Rb8
{[%clk 0:02:29.4]} 14. Rb1 {[%clk 0:03:03.7]} 14... Qxb1 {[%clk 0:02:25.8]} 15.
Qxb1 {[%clk 0:03:04.6]} 15... Rxb1 {[%clk 0:02:25.6]} 16. Rxb1 {[%clk
0:03:05.5]} 16... Be6 {[%clk 0:02:14.1]} 17. Rb7 {[%clk 0:03:03.5]} 17... Bxa2
{[%clk 0:01:53.1]} 18. Rxa7 {[%clk 0:02:58.6]} 18... Bb1 {[%clk 0:01:45.9]} 19.
Be4 {[%clk 0:02:38.6]} 19... c5 {[%clk 0:00:33.1]} 20. Rc7 {[%clk 0:02:20.1]}
20... Re8 {[%clk 0:00:20.1]} 21. Rxc5 {[%clk 0:02:18.9]} 21... g6 {[%clk
0:00:19.7]} 22. Bd3 {[%clk 0:02:15.3]} 22... Re1+ {[%clk 0:00:17.4]} 23. Bf1
{[%clk 0:02:15.4]} 23... Rc1 {[%clk 0:00:17.6]} 24. Rb5 {[%clk 0:01:57.8]} 24...
Ba2 {[%clk 0:00:12.1]} 25. Rc5 {[%clk 0:01:37.1]} 25... Bb1 {[%clk 0:00:10.6]}
26. Rb5 {[%clk 0:01:22.2]} 26... Ba2 {[%clk 0:00:08.6]} 27. Rc5 {[%clk 0:01:10]}
27... Bb1 {[%clk 0:00:08.5]} 1/2-1/2

[Event "*** Titled Tuesday Blitz"]
[Site "Chess.com"]
[Date "2020.11.03"]
[Round "6"]
[White "sjam6687"]
[Black "TST2014"]
[Result "1/2-1/2"]
[WhiteElo "2711"]
[BlackElo "2507"]
[TimeControl "180+1"]
[EndTime "11:09:02 PST"]
[Termination "Game drawn by repetition"]

1. d4 {[%clk 0:03:00.9]} 1... Nf6 {[%clk 0:02:56.5]} 2. c4 {[%clk 0:03:01.3]}
2... c5 {[%clk 0:02:55.3]} 3. d5 {[%clk 0:02:58.5]} 3... b5 {[%clk 0:02:54.9]}
4. cxb5 {[%clk 0:02:55.2]} 4... a6 {[%clk 0:02:54.7]} 5. b6 {[%clk 0:02:55.6]}
5... d6 {[%clk 0:02:53.5]} 6. Nc3 {[%clk 0:02:54.8]} 6... g6 {[%clk 0:02:52.8]}
7. e4 {[%clk 0:02:54.2]} 7... Bg7 {[%clk 0:02:52.5]} 8. Be2 {[%clk 0:02:51.1]}
8... Nbd7 {[%clk 0:02:51.6]} 9. Nf3 {[%clk 0:02:49.7]} 9... O-O {[%clk
0:02:50.4]} 10. O-O {[%clk 0:02:48.5]} 10... Qxb6 {[%clk 0:02:47.2]} 11. Nd2
{[%clk 0:02:47.4]} 11... Ne5 {[%clk 0:02:42.8]} 12. h3 {[%clk 0:02:34.7]} 12...
g5 {[%clk 0:02:42]} 13. Kh2 {[%clk 0:01:48.4]} 13... Bd7 {[%clk 0:02:38.3]} 14.
Nf3 {[%clk 0:01:35.9]} 14... Nxf3+ {[%clk 0:02:28.7]} 15. Bxf3 {[%clk
0:01:36.8]} 15... h6 {[%clk 0:02:26.8]} 16. Qe2 {[%clk 0:01:34.3]} 16... Bb5
{[%clk 0:02:24.6]} 17. Nxb5 {[%clk 0:01:33.5]} 17... Qxb5 {[%clk 0:02:21]} 18.
Re1 {[%clk 0:01:19.7]} 18... Nd7 {[%clk 0:02:18.2]} 19. Rb1 {[%clk 0:01:08.2]}
19... Qxe2 {[%clk 0:02:12.8]} 20. Bxe2 {[%clk 0:01:06.2]} 20... Rfb8 {[%clk
0:02:12.6]} 21. b3 {[%clk 0:01:05.2]} 21... a5 {[%clk 0:02:11.4]} 22. a4 {[%clk
0:01:02.7]} 22... Rb4 {[%clk 0:02:08.8]} 23. Bb5 {[%clk 0:01:03]} 23... Nf6
{[%clk 0:02:02]} 24. f3 {[%clk 0:00:59.9]} 24... Nh5 {[%clk 0:02:00.1]} 25. Bd2
{[%clk 0:00:57.6]} 25... Be5+ {[%clk 0:01:55.2]} 26. Kg1 {[%clk 0:00:54.9]}
26... Bd4+ {[%clk 0:01:41.2]} 27. Kh2 {[%clk 0:00:52.6]} 27... Be5+ {[%clk
0:01:41.3]} 28. Kg1 {[%clk 0:00:47.9]} 28... Bd4+ {[%clk 0:01:41.3]} 29. Kh1
{[%clk 0:00:44.7]} 29... Ng3+ {[%clk 0:01:37.4]} 30. Kh2 {[%clk 0:00:44.4]}
30... Be5 {[%clk 0:01:35.9]} 31. Bxb4 {[%clk 0:00:43.5]} 31... cxb4 {[%clk
0:01:17.4]} 32. Kg1 {[%clk 0:00:39.9]} 32... Bd4+ {[%clk 0:01:17.2]} 33. Kh2
{[%clk 0:00:39.8]} 33... Be5 {[%clk 0:01:17.7]} 34. Bc6 {[%clk 0:00:35]} 34...
Rb8 {[%clk 0:01:16.1]} 35. Kg1 {[%clk 0:00:32]} 35... Bd4+ {[%clk 0:01:15.9]}
36. Kh2 {[%clk 0:00:31.3]} 36... Be5 {[%clk 0:01:16.2]} 37. Kg1 {[%clk
0:00:28.2]} 37... Bd4+ {[%clk 0:01:16.2]} 38. Kh2 {[%clk 0:00:28.6]} 38... Be5
{[%clk 0:01:16.6]} 1/2-1/2

[Event "*** Titled Tuesday Blitz"]
[Site "Chess.com"]
[Date "2020.11.03"]
[Round "6"]
[White "Ausbildung"]
[Black "pfalcon1949"]
[Result "0-1"]
[WhiteElo "2213"]
[BlackElo "1983"]
[TimeControl "180+1"]
[EndTime "11:09:06 PST"]
[Termination "pfalcon1949 won by resignation"]

1. e4 {[%clk 0:03:00.9]} 1... c6 {[%clk 0:02:59.4]} 2. d4 {[%clk 0:02:59.8]}
2... d5 {[%clk 0:02:59.3]} 3. exd5 {[%clk 0:03:00]} 3... cxd5 {[%clk 0:02:58.8]}
4. Bd3 {[%clk 0:03:00.3]} 4... Nc6 {[%clk 0:02:55.7]} 5. c3 {[%clk 0:03:00]}
5... Nf6 {[%clk 0:02:53.6]} 6. Bf4 {[%clk 0:02:58.3]} 6... Bg4 {[%clk
0:02:52.3]} 7. Ne2 {[%clk 0:02:57.2]} 7... e6 {[%clk 0:02:51.9]} 8. O-O {[%clk
0:02:56]} 8... Bd6 {[%clk 0:02:52]} 9. f3 {[%clk 0:02:54.8]} 9... Bh5 {[%clk
0:02:43]} 10. Qe1 {[%clk 0:02:53.9]} 10... O-O {[%clk 0:02:40.5]} 11. Qh4 {[%clk
0:02:52.5]} 11... Bg6 {[%clk 0:02:39.3]} 12. Bxg6 {[%clk 0:02:46.6]} 12... hxg6
{[%clk 0:02:30.9]} 13. Nd2 {[%clk 0:02:44.8]} 13... e5 {[%clk 0:02:25.3]} 14.
Bg3 {[%clk 0:02:19.2]} 14... exd4 {[%clk 0:02:11.1]} 15. Nxd4 {[%clk 0:02:16.3]}
15... Bc5 {[%clk 0:02:01.1]} 16. Nb3 {[%clk 0:02:13.6]} 16... Bb6 {[%clk
0:02:00.9]} 17. Bf2 {[%clk 0:02:12.4]} 17... a5 {[%clk 0:02:00.4]} 18. a4 {[%clk
0:02:08.7]} 18... Rc8 {[%clk 0:01:40.2]} 19. Rfe1 {[%clk 0:02:07.2]} 19... Qd7
{[%clk 0:01:35.6]} 20. Nxc6 {[%clk 0:02:05]} 20... Bxf2+ {[%clk 0:01:29.5]} 21.
Qxf2 {[%clk 0:02:03.6]} 21... bxc6 {[%clk 0:01:22.2]} 22. Qc5 {[%clk 0:01:59.7]}
22... Nh5 {[%clk 0:01:10.3]} 23. Nd4 {[%clk 0:01:52]} 23... Nf4 {[%clk
0:01:07.8]} 24. Re7 {[%clk 0:01:45.1]} 24... Qd8 {[%clk 0:00:43.9]} 25. Rae1
{[%clk 0:01:43]} 25... Nd3 {[%clk 0:00:39.5]} 26. Qa7 {[%clk 0:01:00.8]} 26...
Nxe1 {[%clk 0:00:35.4]} 27. Rxe1 {[%clk 0:00:59]} 27... Ra8 {[%clk 0:00:29]} 28.
Qc5 {[%clk 0:00:57.3]} 28... Qh4 {[%clk 0:00:23.8]} 29. Rd1 {[%clk 0:00:55.9]}
29... Rfe8 {[%clk 0:00:22.7]} 30. Qxc6 {[%clk 0:00:54.6]} 30... Re1+ {[%clk
0:00:21.4]} 0-1

[Event "*** Titled Tuesday Blitz"]
[Site "Chess.com"]
[Date "2020.11.03"]
[Round "6"]
[White "TimofeevAr"]
[Black "DraG0s3L"]
[Result "1-0"]
[WhiteElo "2807"]
[BlackElo "2591"]
[TimeControl "180+1"]
[EndTime "11:09:10 PST"]
[Termination "TimofeevAr won by resignation"]

1. c4 {[%clk 0:03:00.9]} 1... c5 {[%clk 0:02:59.6]} 2. Nf3 {[%clk 0:02:59]} 2...
Nc6 {[%clk 0:02:59.3]} 3. Nc3 {[%clk 0:02:58.5]} 3... Nf6 {[%clk 0:02:59.6]} 4.
g3 {[%clk 0:02:57.7]} 4... g6 {[%clk 0:02:59.3]} 5. Bg2 {[%clk 0:02:57.6]} 5...
Bg7 {[%clk 0:03:00]} 6. O-O {[%clk 0:02:57.9]} 6... O-O {[%clk 0:03:00.3]} 7. d4
{[%clk 0:02:58.2]} 7... cxd4 {[%clk 0:02:59.8]} 8. Nxd4 {[%clk 0:02:58.5]} 8...
Nxd4 {[%clk 0:02:49.3]} 9. Qxd4 {[%clk 0:02:58.1]} 9... d6 {[%clk 0:02:50.2]}
10. Qd3 {[%clk 0:02:58.4]} 10... Rb8 {[%clk 0:02:48.6]} 11. Bd2 {[%clk
0:02:52.5]} 11... Bd7 {[%clk 0:02:48.9]} 12. Rac1 {[%clk 0:02:48.5]} 12... Bc6
{[%clk 0:02:49.4]} 13. e4 {[%clk 0:02:46.7]} 13... Nd7 {[%clk 0:02:49.1]} 14. b3
{[%clk 0:02:46.7]} 14... Nc5 {[%clk 0:02:47]} 15. Qe2 {[%clk 0:02:46.6]} 15...
a5 {[%clk 0:02:43.5]} 16. Rfd1 {[%clk 0:02:44.8]} 16... Qd7 {[%clk 0:02:35.1]}
17. Be1 {[%clk 0:02:31.2]} 17... f5 {[%clk 0:01:59.2]} 18. exf5 {[%clk
0:02:28.3]} 18... Qxf5 {[%clk 0:01:56.4]} 19. Nd5 {[%clk 0:02:25.6]} 19... Bxd5
{[%clk 0:01:49.2]} 20. Rxd5 {[%clk 0:02:21.3]} 20... Qf6 {[%clk 0:01:34.7]} 21.
Bxa5 {[%clk 0:02:18.8]} 21... Rf7 {[%clk 0:01:25]} 22. Be1 {[%clk 0:02:16.5]}
22... Rbf8 {[%clk 0:01:24.6]} 23. b4 {[%clk 0:02:06.1]} 23... Ne6 {[%clk
0:01:08.3]} 24. Rcd1 {[%clk 0:02:03.6]} 24... Nc7 {[%clk 0:01:03.8]} 25. R5d3
{[%clk 0:02:02.7]} 25... Kh8 {[%clk 0:00:56.4]} 26. Bxb7 {[%clk 0:01:59.2]}
26... d5 {[%clk 0:00:53.1]} 27. Bxd5 {[%clk 0:01:56.9]} 27... Nxd5 {[%clk
0:00:53.4]} 28. cxd5 {[%clk 0:01:55.4]} 28... Qb6 {[%clk 0:00:53.4]} 29. a4
{[%clk 0:01:53.9]} 29... Qa7 {[%clk 0:00:49.7]} 30. a5 {[%clk 0:01:52.1]} 30...
h5 {[%clk 0:00:49.7]} 31. b5 {[%clk 0:01:51.7]} 31... h4 {[%clk 0:00:49.9]} 32.
b6 {[%clk 0:01:51.4]} 32... Qa6 {[%clk 0:00:48.8]} 33. Re3 {[%clk 0:01:49.5]}
33... Qc8 {[%clk 0:00:47.6]} 34. a6 {[%clk 0:01:42]} 34... h3 {[%clk 0:00:44.1]}
35. b7 {[%clk 0:01:40.9]} 35... Qd7 {[%clk 0:00:38.1]} 36. Rb3 {[%clk
0:01:28.8]} 36... Rb8 {[%clk 0:00:20]} 37. a7 {[%clk 0:01:27.7]} 37... Rxb7
{[%clk 0:00:20]} 38. a8=Q+ {[%clk 0:01:27.6]} 38... Rf8 {[%clk 0:00:19.6]} 39.
Qxb7 {[%clk 0:01:27.4]} 39... Qf5 {[%clk 0:00:19.8]} 40. d6 {[%clk 0:01:23.6]}
40... Bd4 {[%clk 0:00:18.7]} 41. Rxd4 {[%clk 0:01:21]} 1-0

[Event "*** Titled Tuesday Blitz"]
[Site "Chess.com"]
[Date "2020.11.03"]
[Round "6"]
[White "Javylavilla"]
[Black "UB_TheQueen"]
[Result "1-0"]
[WhiteElo "2231"]
[BlackElo "2063"]
[TimeControl "180+1"]
[EndTime "11:09:10 PST"]
[Termination "Javylavilla won on time"]

1. e4 {[%clk 0:03:00.9]} 1... c5 {[%clk 0:02:59.6]} 2. Nf3 {[%clk 0:02:58.9]}
2... d6 {[%clk 0:02:59.8]} 3. d4 {[%clk 0:02:58.6]} 3... cxd4 {[%clk 0:03:00.1]}
4. Nxd4 {[%clk 0:02:59.5]} 4... Nf6 {[%clk 0:03:00.5]} 5. Nc3 {[%clk 0:02:59.1]}
5... g6 {[%clk 0:03:01]} 6. Be3 {[%clk 0:02:58.5]} 6... Bg7 {[%clk 0:03:01.2]}
7. f3 {[%clk 0:02:58.3]} 7... O-O {[%clk 0:03:01.7]} 8. Qd2 {[%clk 0:02:58.5]}
8... Nc6 {[%clk 0:03:02]} 9. Bc4 {[%clk 0:02:58.5]} 9... Nd7 {[%clk 0:03:02.2]}
10. Nxc6 {[%clk 0:02:51.7]} 10... bxc6 {[%clk 0:03:01.6]} 11. h4 {[%clk
0:02:51.9]} 11... Nb6 {[%clk 0:02:39]} 12. Be2 {[%clk 0:02:42.4]} 12... Be6
{[%clk 0:02:28.7]} 13. h5 {[%clk 0:02:41]} 13... Rb8 {[%clk 0:02:25.9]} 14. Bh6
{[%clk 0:02:39.1]} 14... f5 {[%clk 0:01:16.7]} 15. hxg6 {[%clk 0:02:33]} 15...
hxg6 {[%clk 0:01:12.7]} 16. Bxg7 {[%clk 0:02:31.2]} 16... Kxg7 {[%clk 0:01:13]}
17. Qh6+ {[%clk 0:02:30.3]} 17... Kf6 {[%clk 0:01:12.4]} 18. Qh4+ {[%clk
0:02:29.8]} 18... Kg7 {[%clk 0:01:09]} 19. exf5 {[%clk 0:02:14.4]} 19... Bxf5
{[%clk 0:01:09.2]} 20. Ne4 {[%clk 0:02:13.1]} 20... Rh8 {[%clk 0:01:03.7]} 21.
Qxh8+ {[%clk 0:01:59.6]} 21... Qxh8 {[%clk 0:01:04.6]} 22. Rxh8 {[%clk
0:01:58.7]} 22... Rxh8 {[%clk 0:01:05.5]} 23. Kf2 {[%clk 0:01:55.9]} 23... d5
{[%clk 0:00:57.5]} 24. Nc5 {[%clk 0:01:50.4]} 24... Bxc2 {[%clk 0:00:54.6]} 25.
Rc1 {[%clk 0:01:49.4]} 25... Bf5 {[%clk 0:00:53.6]} 26. g4 {[%clk 0:01:46.7]}
26... Bc8 {[%clk 0:00:53]} 27. Nb3 {[%clk 0:01:45.7]} 27... Rh2+ {[%clk
0:00:51.8]} 28. Ke3 {[%clk 0:01:40.7]} 28... Bd7 {[%clk 0:00:42.6]} 29. Nd4
{[%clk 0:01:39.7]} 29... Nc4+ {[%clk 0:00:25.8]} 30. Bxc4 {[%clk 0:01:38.2]}
30... dxc4 {[%clk 0:00:26.2]} 31. Rxc4 {[%clk 0:01:38.2]} 31... Rxb2 {[%clk
0:00:25.3]} 32. a4 {[%clk 0:01:35]} 32... c5 {[%clk 0:00:11.3]} 33. Rxc5 {[%clk
0:01:34.8]} 33... Bxa4 {[%clk 0:00:11.3]} 34. Rc7 {[%clk 0:01:34.9]} 34... a5
{[%clk 0:00:07.3]} 35. Rxe7+ {[%clk 0:01:34.2]} 35... Kf6 {[%clk 0:00:07.1]} 36.
Re6+ {[%clk 0:01:34.5]} 36... Kf7 {[%clk 0:00:06.7]} 37. Ra6 {[%clk 0:01:33.7]}
37... Ra2 {[%clk 0:00:02.9]} 38. Rxa5 {[%clk 0:01:30.3]} 38... Ra3+ {[%clk
0:00:03.2]} 39. Kf4 {[%clk 0:01:28.9]} 1-0

[Event "*** Titled Tuesday Blitz"]
[Site "Chess.com"]
[Date "2020.11.03"]
[Round "6"]
[White "vanea_03"]
[Black "kuban1991"]
[Result "0-1"]
[WhiteElo "2727"]
[BlackElo "2901"]
[TimeControl "180+1"]
[EndTime "11:09:15 PST"]
[Termination "kuban1991 won by resignation"]

1. c4 {[%clk 0:03:00.9]} 1... g6 {[%clk 0:02:59.7]} 2. d4 {[%clk 0:02:59]} 2...
Bg7 {[%clk 0:03:00.6]} 3. Nf3 {[%clk 0:02:58.7]} 3... c5 {[%clk 0:03:00.4]} 4.
d5 {[%clk 0:02:57.9]} 4... d6 {[%clk 0:03:00.3]} 5. Nc3 {[%clk 0:02:57.4]} 5...
Bxc3+ {[%clk 0:02:59.9]} 6. bxc3 {[%clk 0:02:57.1]} 6... f5 {[%clk 0:03:00.8]}
7. Qc2 {[%clk 0:02:46.3]} 7... Nf6 {[%clk 0:03:00.2]} 8. Bh6 {[%clk 0:02:45.5]}
8... Nbd7 {[%clk 0:02:52.4]} 9. h3 {[%clk 0:02:36.6]} 9... Qa5 {[%clk
0:02:51.9]} 10. e3 {[%clk 0:02:33.5]} 10... Nb6 {[%clk 0:02:41.5]} 11. Bd3
{[%clk 0:02:29.5]} 11... Bd7 {[%clk 0:02:38.4]} 12. Nd2 {[%clk 0:02:19.6]} 12...
Qa4 {[%clk 0:02:36.5]} 13. Qb2 {[%clk 0:02:14.4]} 13... O-O-O {[%clk 0:02:34.1]}
14. O-O {[%clk 0:02:12.9]} 14... Rhg8 {[%clk 0:02:34]} 15. Bg5 {[%clk
0:02:10.7]} 15... h6 {[%clk 0:02:29.6]} 16. Bxh6 {[%clk 0:01:45.7]} 16... g5
{[%clk 0:02:29.6]} 17. f4 {[%clk 0:01:44.1]} 17... gxf4 {[%clk 0:02:28.8]} 18.
exf4 {[%clk 0:01:37.9]} 18... Rg3 {[%clk 0:02:25.5]} 19. Rf3 {[%clk 0:01:34.1]}
19... Rxf3 {[%clk 0:02:24.3]} 20. gxf3 {[%clk 0:01:35]} 20... Rh8 {[%clk
0:02:20.1]} 21. Bg5 {[%clk 0:01:33.4]} 21... Rxh3 {[%clk 0:02:18.4]} 22. Re1
{[%clk 0:01:27.6]} 22... Rh7 {[%clk 0:02:12]} 23. Qb1 {[%clk 0:01:08.9]} 23...
Kc7 {[%clk 0:02:08]} 24. Bxf5 {[%clk 0:00:58.2]} 24... Rg7 {[%clk 0:02:07.9]}
25. Bxd7 {[%clk 0:00:54.9]} 25... Qxd7 {[%clk 0:02:04.1]} 26. Kg2 {[%clk
0:00:49.5]} 26... Nh7 {[%clk 0:02:02]} 27. Ne4 {[%clk 0:00:44.7]} 27... Nxc4
{[%clk 0:02:00.3]} 28. Qd3 {[%clk 0:00:45.2]} 28... Ne5 {[%clk 0:01:53.9]} 29.
fxe5 {[%clk 0:00:17.9]} 29... Nxg5 {[%clk 0:01:53.5]} 30. Nxg5 {[%clk
0:00:15.3]} 30... Rxg5+ {[%clk 0:01:54.4]} 31. Kf2 {[%clk 0:00:15.8]} 31... Qh3
{[%clk 0:01:45.7]} 32. exd6+ {[%clk 0:00:15.3]} 32... exd6 {[%clk 0:01:43.7]}
33. Re7+ {[%clk 0:00:11]} 33... Kd8 {[%clk 0:01:44]} 34. Qe4 {[%clk 0:00:09.2]}
34... Rg2+ {[%clk 0:01:33.6]} 35. Ke3 {[%clk 0:00:09.5]} 35... Qh6+ {[%clk
0:01:32]} 36. Kd3 {[%clk 0:00:02.3]} 36... Qd2+ {[%clk 0:01:32.4]} 37. Kc4
{[%clk 0:00:02.9]} 37... Qxa2+ {[%clk 0:01:30.8]} 38. Kd3 {[%clk 0:00:03.5]}
38... Rd2+ {[%clk 0:01:26.9]} 39. Ke3 {[%clk 0:00:04]} 39... Re2+ {[%clk
0:01:27.5]} 0-1

[Event "*** Titled Tuesday Blitz"]
[Site "Chess.com"]
[Date "2020.11.03"]
[Round "6"]
[White "hungrycaterpillar4"]
[Black "InitiatingASC"]
[Result "1/2-1/2"]
[WhiteElo "2566"]
[BlackElo "2402"]
[TimeControl "180+1"]
[EndTime "11:09:16 PST"]
[Termination "Game drawn by agreement"]

1. e4 {[%clk 0:03:00.9]} 1... c5 {[%clk 0:03:00.2]} 2. Nf3 {[%clk 0:03:00.8]}
2... Nc6 {[%clk 0:03:00.2]} 3. d4 {[%clk 0:02:59.7]} 3... cxd4 {[%clk
0:03:01.1]} 4. Nxd4 {[%clk 0:03:00.5]} 4... Nf6 {[%clk 0:03:01.6]} 5. Nc3 {[%clk
0:03:01]} 5... e5 {[%clk 0:03:01.8]} 6. Ndb5 {[%clk 0:03:00.2]} 6... h6 {[%clk
0:03:02.2]} 7. Nd5 {[%clk 0:02:52.9]} 7... Nxd5 {[%clk 0:03:01.6]} 8. exd5
{[%clk 0:02:53.8]} 8... a6 {[%clk 0:03:02.5]} 9. dxc6 {[%clk 0:02:43]} 9... axb5
{[%clk 0:03:03.4]} 10. cxd7+ {[%clk 0:02:43.2]} 10... Bxd7 {[%clk 0:03:03.1]}
11. Be2 {[%clk 0:02:43.4]} 11... Qc7 {[%clk 0:02:54.2]} 12. Be3 {[%clk
0:02:36.3]} 12... Bc6 {[%clk 0:02:48]} 13. O-O {[%clk 0:02:32.3]} 13... b4
{[%clk 0:02:39.3]} 14. Bf3 {[%clk 0:02:01.2]} 14... Be7 {[%clk 0:02:34.4]} 15.
Bxc6+ {[%clk 0:01:37.7]} 15... bxc6 {[%clk 0:02:35.3]} 16. Qg4 {[%clk
0:01:36.5]} 16... g6 {[%clk 0:02:18.8]} 17. Rfe1 {[%clk 0:01:31.7]} 17... h5
{[%clk 0:02:08.7]} 18. Qc4 {[%clk 0:01:25]} 18... Ra5 {[%clk 0:01:52]} 19. c3
{[%clk 0:01:10.2]} 19... bxc3 {[%clk 0:01:48.4]} 20. Qxc3 {[%clk 0:01:11.1]}
20... O-O {[%clk 0:01:42]} 21. b4 {[%clk 0:00:57.4]} 21... Rb5 {[%clk
0:01:34.7]} 22. a3 {[%clk 0:00:47.4]} 22... Ra8 {[%clk 0:01:28.5]} 23. Rac1
{[%clk 0:00:40.8]} 23... Rd5 {[%clk 0:01:14.8]} 24. h3 {[%clk 0:00:29.9]} 24...
Qb7 {[%clk 0:01:07.9]} 25. Ra1 {[%clk 0:00:16.7]} 25... Ra6 {[%clk 0:01:03]} 26.
Rec1 {[%clk 0:00:16.9]} 26... Qb5 {[%clk 0:00:54]} 27. Qc4 {[%clk 0:00:17.3]}
1/2-1/2

[Event "*** Titled Tuesday Blitz"]
[Site "Chess.com"]
[Date "2020.11.03"]
[Round "6"]
[White "JoliyRoger"]
[Black "AndrewMcStone"]
[Result "1-0"]
[WhiteElo "2365"]
[BlackElo "2147"]
[TimeControl "180+1"]
[EndTime "11:09:16 PST"]
[Termination "JoliyRoger won by resignation"]

1. Nf3 {[%clk 0:03:00.9]} 1... Nf6 {[%clk 0:02:51.9]} 2. d4 {[%clk 0:03:01.4]}
2... g6 {[%clk 0:02:51.7]} 3. c4 {[%clk 0:03:02]} 3... Bg7 {[%clk 0:02:52.3]} 4.
Nc3 {[%clk 0:03:02.6]} 4... d6 {[%clk 0:02:52.9]} 5. e4 {[%clk 0:03:03.1]} 5...
O-O {[%clk 0:02:53.1]} 6. h3 {[%clk 0:03:03.6]} 6... e5 {[%clk 0:02:47.4]} 7. d5
{[%clk 0:03:03.8]} 7... a5 {[%clk 0:02:44.6]} 8. Bg5 {[%clk 0:03:03.8]} 8... h6
{[%clk 0:02:44]} 9. Be3 {[%clk 0:03:04.3]} 9... Nh5 {[%clk 0:02:41.7]} 10. Nh2
{[%clk 0:03:02.9]} 10... Nf4 {[%clk 0:02:34.9]} 11. Qd2 {[%clk 0:03:02.6]} 11...
Qf6 {[%clk 0:02:30.5]} 12. Ng4 {[%clk 0:03:00.9]} 12... Qe7 {[%clk 0:02:17.1]}
13. g3 {[%clk 0:02:59.6]} 13... Nh5 {[%clk 0:02:04.5]} 14. Nxh6+ {[%clk
0:02:56.3]} 14... Kh7 {[%clk 0:02:03.3]} 15. Be2 {[%clk 0:02:48.1]} 15... f5
{[%clk 0:01:44.3]} 16. Bxh5 {[%clk 0:02:36.4]} 16... f4 {[%clk 0:01:38.3]} 17.
gxf4 {[%clk 0:02:25.4]} 17... Bxh6 {[%clk 0:01:34]} 18. Bxg6+ {[%clk 0:02:17]}
18... Kxg6 {[%clk 0:01:01.8]} 19. f5+ {[%clk 0:02:17.9]} 19... Kh7 {[%clk
0:01:00.9]} 20. Bxh6 {[%clk 0:02:17.7]} 20... Rg8 {[%clk 0:00:58]} 21. h4 {[%clk
0:02:06.3]} 21... Na6 {[%clk 0:00:50.5]} 22. Bg5 {[%clk 0:02:05.7]} 22... Qe8
{[%clk 0:00:43.4]} 23. O-O-O {[%clk 0:02:06.2]} 23... Nc5 {[%clk 0:00:36.4]} 24.
Rdg1 {[%clk 0:02:02.9]} 24... Qh5 {[%clk 0:00:34.8]} 25. Rg3 {[%clk 0:01:56.7]}
25... Bd7 {[%clk 0:00:32.2]} 26. Rhg1 {[%clk 0:01:56.2]} 26... a4 {[%clk
0:00:30.4]} 27. Kc2 {[%clk 0:01:44.7]} 27... a3 {[%clk 0:00:28.7]} 28. b3 {[%clk
0:01:44.8]} 28... b6 {[%clk 0:00:18.2]} 29. f3 {[%clk 0:01:40.5]} 29... Rab8
{[%clk 0:00:16.5]} 30. Qg2 {[%clk 0:01:39.6]} 30... b5 {[%clk 0:00:15.9]} 31.
Be3 {[%clk 0:01:20.9]} 31... Qf7 {[%clk 0:00:10.5]} 32. Rxg8 {[%clk 0:01:12.2]}
32... Rxg8 {[%clk 0:00:09.8]} 33. Qxg8+ {[%clk 0:01:12.4]} 33... Qxg8 {[%clk
0:00:10.7]} 34. Rxg8 {[%clk 0:01:12.2]} 34... Kxg8 {[%clk 0:00:11.6]} 35. Bxc5
{[%clk 0:01:12.2]} 35... dxc5 {[%clk 0:00:11.3]} 36. Nxb5 {[%clk 0:01:12.8]} 1-0

[Event "*** Titled Tuesday Blitz"]
[Site "Chess.com"]
[Date "2020.11.03"]
[Round "6"]
[White "Sergey85Rodchenkov"]
[Black "Ladislav1969"]
[Result "0-1"]
[WhiteElo "2446"]
[BlackElo "2348"]
[TimeControl "180+1"]
[EndTime "11:09:17 PST"]
[Termination "Ladislav1969 won by resignation"]

1. e4 {[%clk 0:03:00.9]} 1... c5 {[%clk 0:02:59.5]} 2. Nf3 {[%clk 0:03:00.5]}
2... e6 {[%clk 0:03:00.4]} 3. d3 {[%clk 0:03:00.4]} 3... d5 {[%clk 0:02:59.2]}
4. Nbd2 {[%clk 0:02:59.8]} 4... Nc6 {[%clk 0:02:59.4]} 5. g3 {[%clk 0:02:59.8]}
5... Bd6 {[%clk 0:02:59.7]} 6. Bg2 {[%clk 0:02:59.9]} 6... Nge7 {[%clk
0:02:52.2]} 7. O-O {[%clk 0:02:59.1]} 7... O-O {[%clk 0:02:52.2]} 8. Re1 {[%clk
0:02:58.9]} 8... Qc7 {[%clk 0:02:52.3]} 9. b3 {[%clk 0:02:57]} 9... f6 {[%clk
0:02:50.5]} 10. Bb2 {[%clk 0:02:56.3]} 10... d4 {[%clk 0:02:49.7]} 11. Nc4
{[%clk 0:02:55.1]} 11... e5 {[%clk 0:02:43.8]} 12. Nh4 {[%clk 0:02:50]} 12... b5
{[%clk 0:02:33.9]} 13. Nxd6 {[%clk 0:02:49.5]} 13... Qxd6 {[%clk 0:02:34.2]} 14.
a4 {[%clk 0:02:50]} 14... Ba6 {[%clk 0:02:21.1]} 15. axb5 {[%clk 0:02:49]} 15...
Bxb5 {[%clk 0:02:20.7]} 16. Bc1 {[%clk 0:02:44.9]} 16... a5 {[%clk 0:02:20.2]}
17. f4 {[%clk 0:02:43.6]} 17... a4 {[%clk 0:02:16.5]} 18. bxa4 {[%clk
0:02:42.9]} 18... Rxa4 {[%clk 0:02:14.9]} 19. Rb1 {[%clk 0:02:33.8]} 19... Nb4
{[%clk 0:02:06.4]} 20. Bd2 {[%clk 0:02:33.5]} 20... Ra2 {[%clk 0:02:02.2]} 21.
Bxb4 {[%clk 0:02:32.7]} 21... cxb4 {[%clk 0:02:01.7]} 22. Rf1 {[%clk 0:02:26.2]}
22... Ba4 {[%clk 0:01:48.4]} 23. Rf2 {[%clk 0:02:24.5]} 23... Rc8 {[%clk
0:01:44.4]} 24. Qe1 {[%clk 0:02:09]} 24... Raxc2 {[%clk 0:01:27.8]} 25. Qxb4
{[%clk 0:01:56.4]} 25... Qxb4 {[%clk 0:00:48.6]} 26. Rxb4 {[%clk 0:01:55]} 26...
Rxf2 {[%clk 0:00:49.2]} 27. Kxf2 {[%clk 0:01:54.8]} 27... Rc2+ {[%clk
0:00:49.2]} 28. Kg1 {[%clk 0:01:52.6]} 28... Rc1+ {[%clk 0:00:47]} 29. Kf2
{[%clk 0:01:47.4]} 29... Bc2 {[%clk 0:00:43.9]} 30. Bf1 {[%clk 0:01:44.8]} 30...
Rxf1+ {[%clk 0:00:34.1]} 31. Kxf1 {[%clk 0:01:44.1]} 31... Bxd3+ {[%clk
0:00:35]} 32. Kf2 {[%clk 0:01:42.4]} 32... Bxe4 {[%clk 0:00:35.9]} 33. fxe5
{[%clk 0:01:40]} 33... fxe5 {[%clk 0:00:35.5]} 34. Nf3 {[%clk 0:01:34.7]} 34...
Bxf3 {[%clk 0:00:19]} 35. Kxf3 {[%clk 0:01:34.6]} 35... Nd5 {[%clk 0:00:10.7]}
36. Ke4 {[%clk 0:01:17.3]} 36... Nxb4 {[%clk 0:00:08]} 0-1